Workbook

Sheet Лист1
A1: ='[1]4'!A1 -> МАОУ "МАОУ "Лицей№121" | D1: ='[1]4'!$D$1 -> Отд./корп | E1: ='[1]4'!$E$1 -> А.Камалеева,22, Космонавтов,19 | H1: ='[1]4'!$H$1 -> День | I1: 2023-09-08
A2: ='[1]4'!A2 -> Раздел | B2: ='[1]4'!B2 -> № рец. | C2: ='[1]4'!C2 -> Блюдо | D2: ='[1]4'!D2 -> Выход, г | E2: ='[1]4'!E2 -> Цена | F2: ='[1]4'!F2 -> Калорийность | G2: ='[1]4'!G2 -> Белки | H2: ='[1]4'!H2 -> Жиры | I2: ='[1]4'!I2 -> Углеводы
A3: ='[2]4-9, 18-23 сент.'!B29 -> гор.блюдо | B3: ='[2]4-9, 18-23 сент.'!C29 -> ТТК 2021 г | C3: ='[2]4-9, 18-23 сент.'!D29 -> Биточки рыбные из фарша минтая | D3: ='[2]4-9, 18-23 сент.'!E29 -> 90 | F3: ='[2]4-9, 18-23 сент.'!G29 -> 98 | G3: ='[2]4-9, 18-23 сент.'!H29 -> 9.8 | H3: ='[2]4-9, 18-23 сент.'!I29 -> 2.01 | I3: ='[2]4-9, 18-23 сент.'!J29 -> 10.2
A4: ='[2]4-9, 18-23 сент.'!B30 -> гор.блюдо | B4: ='[2]4-9, 18-23 сент.'!C30 -> №312/2015 г | C4: ='[2]4-9, 18-23 сент.'!D30 -> Пюре картофельное | D4: ='[2]4-9, 18-23 сент.'!E30 -> 150 | F4: ='[2]4-9, 18-23 сент.'!G30 -> 169 | G4: ='[2]4-9, 18-23 сент.'!H30 -> 3.28 | H4: ='[2]4-9, 18-23 сент.'!I30 -> 7.28 | I4: ='[2]4-9, 18-23 сент.'!J30 -> 22
A5: ='[2]4-9, 18-23 сент.'!B31 -> гор.напиток | B5: ='[2]4-9, 18-23 сент.'!C31 -> ТТК 2021 г | C5: ='[2]4-9, 18-23 сент.'!D31 -> Компот из плодов или ягод сушеных (урюк) | D5: ='[2]4-9, 18-23 сент.'!E31 -> 180 | F5: ='[2]4-9, 18-23 сент.'!G31 -> 50 | G5: ='[2]4-9, 18-23 сент.'!H31 -> 0.365 | H5: ='[2]4-9, 18-23 сент.'!I31 -> 0.03 | I5: ='[2]4-9, 18-23 сент.'!J31 -> 11.9
A6: ='[2]4-9, 18-23 сент.'!B32 -> хлеб | B6: ='[2]4-9, 18-23 сент.'!C32 -> ТТК | C6: ='[2]4-9, 18-23 сент.'!D32 -> Хлебная корзина (хлеб пш., хлеб рж.-пш.) | D6: ='[2]4-9, 18-23 сент.'!E32 -> 40 | F6: ='[2]4-9, 18-23 сент.'!G32 -> 91 | G6: ='[2]4-9, 18-23 сент.'!H32 -> 2.52 | H6: ='[2]4-9, 18-23 сент.'!I32 -> 0.36 | I6: ='[2]4-9, 18-23 сент.'!J32 -> 18.84
A7: закуска | B7: ='[2]4-9, 18-23 сент.'!C33 -> № 532/2013г, Самара | C7: ='[2]4-9, 18-23 сент.'!D33 -> Салат-бар (Помидоры свежие порциями, огурцы соленые, фасоль конс., сухарики, масло раст.) | D7: ='[2]4-9, 18-23 сент.'!E33 -> 60 | F7: ='[2]4-9, 18-23 сент.'!G33 -> 91 | G7: ='[2]4-9, 18-23 сент.'!H33 -> 1.67 | H7: ='[2]4-9, 18-23 сент.'!I33 -> 6.11 | I7: ='[2]4-9, 18-23 сент.'!J33 -> 7.09
A8: фрукт | B8: ='[2]4-9, 18-23 сент.'!C34 -> №532/2013 г | C8: ='[2]4-9, 18-23 сент.'!D34 -> Десерт фруктовый (яблоки) | D8: ='[2]4-9, 18-23 сент.'!E34 -> 80 | F8: ='[2]4-9, 18-23 сент.'!G34 -> 38 | G8: ='[2]4-9, 18-23 сент.'!H34 -> 0.32 | H8: ='[2]4-9, 18-23 сент.'!I34 -> 0.32 | I8: ='[2]4-9, 18-23 сент.'!J34 -> 7.84
A9: ИТОГО | D9: ='[2]4-9, 18-23 сент.'!E35 -> 600 | F9: ='[2]4-9, 18-23 сент.'!G35 -> 537 | G9: ='[2]4-9, 18-23 сент.'!H35 -> 17.955 | H9: ='[2]4-9, 18-23 сент.'!I35 -> 16.11 | I9: ='[2]4-9, 18-23 сент.'!J35 -> 77.87
